[Event "*** Titled Tuesday Blitz"]
[Site "Chess.com"]
[Date "2018.04.03"]
[Round "6"]
[White "DrZeiss"]
[Black "Orest_Vovk"]
[Result "0-1"]
[WhiteElo "2223"]
[BlackElo "2370"]
[TimeControl "180+2"]
[EndTime "14:18:38 PDT"]
[Termination "Orest_Vovk won on time"]

1. e4 {[%clk 0:03:01.9]} 1... Nf6 {[%clk 0:03:00.5]} 2. e5 {[%clk 0:03:02.3]}
2... Nd5 {[%clk 0:03:01]} 3. d4 {[%clk 0:03:03.3]} 3... d6 {[%clk 0:03:01.7]} 4.
Bc4 {[%clk 0:03:04]} 4... Nb6 {[%clk 0:02:58.4]} 5. Bb3 {[%clk 0:03:04.5]} 5...
dxe5 {[%clk 0:02:58.1]} 6. Qh5 {[%clk 0:03:05]} 6... e6 {[%clk 0:02:39.6]} 7.
dxe5 {[%clk 0:03:03.9]} 7... Nc6 {[%clk 0:02:37.3]} 8. c3 {[%clk 0:03:01.4]}
8... Qd3 {[%clk 0:02:25.9]} 9. Nf3 {[%clk 0:02:54.7]} 9... g6 {[%clk 0:02:07.3]}
10. Qg4 {[%clk 0:02:36.4]} 10... h5 {[%clk 0:02:06.8]} 11. Qg3 {[%clk
0:02:27.5]} 11... h4 {[%clk 0:02:03.3]} 12. Qg4 {[%clk 0:02:27.3]} 12... h3
{[%clk 0:01:59.2]} 13. gxh3 {[%clk 0:02:19]} 13... Rh5 {[%clk 0:01:54.4]} 14.
Bf4 {[%clk 0:02:01.9]} 14... Qe4+ {[%clk 0:01:43]} 15. Kd1 {[%clk 0:01:46.3]}
15... Rf5 {[%clk 0:01:36.5]} 16. Bg3 {[%clk 0:01:08.9]} 16... Qxf3+ {[%clk
0:01:35.3]} 17. Qxf3 {[%clk 0:01:08.2]} 17... Rxf3 {[%clk 0:01:36.7]} 18. Nd2
{[%clk 0:01:08.4]} 18... Rd3 {[%clk 0:01:35.4]} 19. Ke2 {[%clk 0:01:04.9]} 19...
Rd8 {[%clk 0:01:34]} 20. Ne4 {[%clk 0:01:05.3]} 20... Be7 {[%clk 0:01:33.7]} 21.
f4 {[%clk 0:00:59.1]} 21... Na5 {[%clk 0:01:34]} 22. Bc2 {[%clk 0:00:58.5]}
22... Bd7 {[%clk 0:01:35]} 23. b3 {[%clk 0:00:53.2]} 23... Bb5+ {[%clk
0:01:27.1]} 24. c4 {[%clk 0:00:53.5]} 24... Bc6 {[%clk 0:01:28.5]} 25. h4 {[%clk
0:00:50.5]} 25... Bxe4 {[%clk 0:01:28]} 26. Bxe4 {[%clk 0:00:50.4]} 26... Nc6
{[%clk 0:01:29]} 27. Rad1 {[%clk 0:00:41.8]} 27... Rxd1 {[%clk 0:01:25.2]} 28.
Rxd1 {[%clk 0:00:42.3]} 28... Rd8 {[%clk 0:01:25.9]} 29. Rc1 {[%clk 0:00:37.1]}
29... Nd7 {[%clk 0:01:24.8]} 30. Bf2 {[%clk 0:00:30.3]} 30... Nc5 {[%clk
0:01:23.6]} 31. Bb1 {[%clk 0:00:23.9]} 31... Nd4+ {[%clk 0:01:23.1]} 32. Ke3
{[%clk 0:00:21.6]} 32... Nf5+ {[%clk 0:01:23]} 33. Ke2 {[%clk 0:00:22]} 33...
Nxh4 {[%clk 0:01:18.3]} 34. b4 {[%clk 0:00:21.9]} 34... Na4 {[%clk 0:01:13.2]}
35. a3 {[%clk 0:00:18.5]} 35... Nb6 {[%clk 0:01:12.7]} 36. Be4 {[%clk
0:00:17.1]} 36... c6 {[%clk 0:01:11.3]} 37. b5 {[%clk 0:00:06.2]} 37... Rc8
{[%clk 0:01:01.3]} 38. bxc6 {[%clk 0:00:04.2]} 38... bxc6 {[%clk 0:01:02.3]} 39.
Rb1 {[%clk 0:00:03.8]} 39... c5 {[%clk 0:00:55.7]} 0-1

[Event "*** Titled Tuesday Blitz"]
[Site "Chess.com"]
[Date "2018.04.03"]
[Round "6"]
[White "codapbg94"]
[Black "Caisachess"]
[Result "1-0"]
[WhiteElo "2067"]
[BlackElo "2191"]
[TimeControl "180+2"]
[EndTime "14:18:50 PDT"]
[Termination "codapbg94 won by resignation"]

1. e4 {[%clk 0:02:58.6]} 1... e5 {[%clk 0:03:00.8]} 2. Bc4 {[%clk 0:02:58.7]}
2... Nf6 {[%clk 0:03:00.1]} 3. d3 {[%clk 0:02:57.1]} 3... c6 {[%clk 0:03:01.1]}
4. Nf3 {[%clk 0:02:57.6]} 4... Be7 {[%clk 0:02:55.5]} 5. O-O {[%clk 0:02:55.8]}
5... d6 {[%clk 0:02:54.1]} 6. Bb3 {[%clk 0:02:55.8]} 6... O-O {[%clk 0:02:55]}
7. c3 {[%clk 0:02:56.3]} 7... Re8 {[%clk 0:02:56]} 8. Nbd2 {[%clk 0:02:56.2]}
8... h6 {[%clk 0:02:55.3]} 9. Re1 {[%clk 0:02:56]} 9... Bf8 {[%clk 0:02:54.9]}
10. Nf1 {[%clk 0:02:57]} 10... Nbd7 {[%clk 0:02:55.5]} 11. Ng3 {[%clk 0:02:58]}
11... Nc5 {[%clk 0:02:56.4]} 12. Bc2 {[%clk 0:02:57.1]} 12... a5 {[%clk
0:02:52.9]} 13. d4 {[%clk 0:02:57.3]} 13... exd4 {[%clk 0:02:29.4]} 14. cxd4
{[%clk 0:02:57.7]} 14... Ne6 {[%clk 0:02:29.8]} 15. h3 {[%clk 0:02:59.1]} 15...
g6 {[%clk 0:02:20.4]} 16. Be3 {[%clk 0:02:58.8]} 16... Bg7 {[%clk 0:02:20.8]}
17. Qd2 {[%clk 0:02:58.9]} 17... Kh7 {[%clk 0:02:20.5]} 18. Rad1 {[%clk
0:02:58.8]} 18... d5 {[%clk 0:02:15.4]} 19. e5 {[%clk 0:02:58.9]} 19... Ng8
{[%clk 0:02:07.7]} 20. h4 {[%clk 0:02:53]} 20... Ne7 {[%clk 0:01:52.3]} 21. h5
{[%clk 0:02:53.2]} 21... Bd7 {[%clk 0:01:43.4]} 22. Nh4 {[%clk 0:02:43.1]} 22...
Rf8 {[%clk 0:01:30]} 23. Nf3 {[%clk 0:02:26.7]} 23... Nc7 {[%clk 0:01:17]} 24.
Nh2 {[%clk 0:02:23.9]} 24... Qc8 {[%clk 0:01:12.7]} 25. Nf3 {[%clk 0:02:06.7]}
25... Nf5 {[%clk 0:01:12.3]} 26. Nxf5 {[%clk 0:02:05.8]} 26... Bxf5 {[%clk
0:01:13.3]} 27. Nh4 {[%clk 0:02:06.9]} 27... Bxc2 {[%clk 0:01:11.9]} 28. Qxc2
{[%clk 0:02:06.3]} 28... Qg4 {[%clk 0:01:13.4]} 29. g3 {[%clk 0:01:45.8]} 29...
Qxh5 {[%clk 0:01:12.6]} 30. Kg2 {[%clk 0:01:46.7]} 30... Ne6 {[%clk 0:01:11.3]}
31. Rh1 {[%clk 0:01:45.6]} 31... Kg8 {[%clk 0:00:40.1]} 32. Nf3 {[%clk
0:01:34.6]} 32... Qg4 {[%clk 0:00:37.8]} 33. Rh4 {[%clk 0:01:31.9]} 33... Qf5
{[%clk 0:00:34.6]} 34. Qxf5 {[%clk 0:01:29.7]} 34... gxf5 {[%clk 0:00:36.5]} 35.
Bxh6 {[%clk 0:01:30.5]} 35... Bxh6 {[%clk 0:00:37]} 36. Rxh6 {[%clk 0:01:31.3]}
36... Kg7 {[%clk 0:00:38.3]} 37. Rf6 {[%clk 0:01:13.6]} 37... a4 {[%clk
0:00:29.4]} 38. Rxf5 {[%clk 0:01:13]} 38... a3 {[%clk 0:00:30]} 39. b3 {[%clk
0:01:13.3]} 39... Rad8 {[%clk 0:00:23]} 40. Ng5 {[%clk 0:00:58]} 40... Nxg5
{[%clk 0:00:19.3]} 41. Rxg5+ {[%clk 0:00:58.4]} 41... Kh6 {[%clk 0:00:20.9]} 42.
Rg4 {[%clk 0:00:58.4]} 42... Kh5 {[%clk 0:00:19.3]} 43. f3 {[%clk 0:00:57.6]}
1-0

[Event "*** Titled Tuesday Blitz"]
[Site "Chess.com"]
[Date "2018.04.03"]
[Round "6"]
[White "SmoothAsAHedgehog"]
[Black "Man-Chuk"]
[Result "0-1"]
[WhiteElo "2574"]
[BlackElo "2667"]
[TimeControl "180+2"]
[EndTime "14:19:00 PDT"]
[Termination "Man-Chuk won by resignation"]

1. Nf3 {[%clk 0:03:01.9]} 1... g6 {[%clk 0:02:59]} 2. c4 {[%clk 0:03:02.5]} 2...
Bg7 {[%clk 0:02:59.3]} 3. g3 {[%clk 0:03:04.1]} 3... e5 {[%clk 0:02:59.6]} 4.
Nc3 {[%clk 0:03:04.1]} 4... Nc6 {[%clk 0:03:00.7]} 5. Bg2 {[%clk 0:03:04.8]}
5... f5 {[%clk 0:03:01.8]} 6. d3 {[%clk 0:03:04.9]} 6... Nf6 {[%clk 0:03:00.3]}
7. Bg5 {[%clk 0:03:03]} 7... d6 {[%clk 0:02:59]} 8. Rb1 {[%clk 0:03:00]} 8...
O-O {[%clk 0:02:58.7]} 9. O-O {[%clk 0:03:00.6]} 9... a5 {[%clk 0:02:59.2]} 10.
a3 {[%clk 0:03:01.4]} 10... Ne7 {[%clk 0:02:54.3]} 11. Nd5 {[%clk 0:02:59.3]}
11... Nfxd5 {[%clk 0:02:48.2]} 12. cxd5 {[%clk 0:02:59.6]} 12... h6 {[%clk
0:02:48.9]} 13. Bxe7 {[%clk 0:03:00.6]} 13... Qxe7 {[%clk 0:02:50.8]} 14. Rc1
{[%clk 0:03:02]} 14... Rf7 {[%clk 0:02:31.9]} 15. Nd2 {[%clk 0:02:48.3]} 15...
e4 {[%clk 0:02:25.1]} 16. Qc2 {[%clk 0:02:36]} 16... e3 {[%clk 0:02:19.8]} 17.
fxe3 {[%clk 0:02:23.2]} 17... Qxe3+ {[%clk 0:02:21.7]} 18. Kh1 {[%clk
0:02:24.3]} 18... Bd7 {[%clk 0:01:59.1]} 19. Rce1 {[%clk 0:02:13.6]} 19... Re8
{[%clk 0:01:46.9]} 20. Nc4 {[%clk 0:01:55.7]} 20... Qc5 {[%clk 0:01:44.9]} 21.
b4 {[%clk 0:01:48.3]} 21... axb4 {[%clk 0:01:39.6]} 22. axb4 {[%clk 0:01:50.2]}
22... Qxb4 {[%clk 0:01:38.8]} 23. Rb1 {[%clk 0:01:50.8]} 23... Qa4 {[%clk
0:01:35]} 24. Qxa4 {[%clk 0:01:35.6]} 24... Bxa4 {[%clk 0:01:36.9]} 25. Rxb7
{[%clk 0:01:00.2]} 25... Rxe2 {[%clk 0:01:35.6]} 26. Rc1 {[%clk 0:00:42.1]}
26... Rfe7 {[%clk 0:01:24.5]} 27. h4 {[%clk 0:00:33.7]} 27... Rf2 {[%clk
0:01:12.9]} 28. Rf1 {[%clk 0:00:32.2]} 28... Rc2 {[%clk 0:00:57.2]} 29. Bf3
{[%clk 0:00:25.9]} 29... Be5 {[%clk 0:00:57.9]} 30. Nxe5 {[%clk 0:00:21.1]}
30... Rxe5 {[%clk 0:00:59.8]} 31. Rb4 {[%clk 0:00:18.9]} 31... Be8 {[%clk
0:00:59.6]} 32. Rc4 {[%clk 0:00:18]} 32... Rxc4 {[%clk 0:00:59.5]} 33. dxc4
{[%clk 0:00:19.9]} 33... Re3 {[%clk 0:00:57.8]} 34. Kg2 {[%clk 0:00:14.7]} 34...
Rc3 {[%clk 0:00:58.8]} 35. Re1 {[%clk 0:00:16]} 35... Bf7 {[%clk 0:00:59.6]} 36.
Rd1 {[%clk 0:00:09.9]} 36... Rxc4 {[%clk 0:00:58.9]} 37. Rd2 {[%clk 0:00:11.5]}
37... Kg7 {[%clk 0:00:58.5]} 38. Kf2 {[%clk 0:00:11.5]} 38... Kf6 {[%clk
0:00:59.3]} 39. Bg2 {[%clk 0:00:11.7]} 39... Rc3 {[%clk 0:00:59.8]} 40. Bf3
{[%clk 0:00:12.2]} 40... g5 {[%clk 0:01:00.8]} 41. hxg5+ {[%clk 0:00:13.2]}
41... hxg5 {[%clk 0:01:02.7]} 42. Bg2 {[%clk 0:00:12.8]} 42... Bh5 {[%clk
0:00:59.5]} 43. Bh1 {[%clk 0:00:13.2]} 43... Bg6 {[%clk 0:00:56.5]} 44. Bf3
{[%clk 0:00:14.2]} 44... f4 {[%clk 0:00:57.4]} 45. gxf4 {[%clk 0:00:15.3]} 45...
gxf4 {[%clk 0:00:59.3]} 46. Bg2 {[%clk 0:00:15.7]} 46... Rc2 {[%clk 0:01:00]}
47. Rxc2 {[%clk 0:00:13.7]} 47... Bxc2 {[%clk 0:01:01.9]} 48. Kf3 {[%clk
0:00:15.1]} 48... Ke5 {[%clk 0:01:02.6]} 49. Kg4 {[%clk 0:00:15.5]} 49... Bf5+
{[%clk 0:01:03.1]} 50. Kg5 {[%clk 0:00:14]} 50... Be4 {[%clk 0:01:03.2]} 0-1

[Event "*** Titled Tuesday Blitz"]
[Site "Chess.com"]
[Date "2018.04.03"]
[Round "6"]
[White "Kislov_Oleg"]
[Black "nochewycandy"]
[Result "1-0"]
[WhiteElo "2250"]
[BlackElo "1995"]
[TimeControl "180+2"]
[EndTime "14:19:01 PDT"]
[Termination "Kislov_Oleg won by checkmate"]

1. d4 {[%clk 0:03:01.9]} 1... Nf6 {[%clk 0:02:34.1]} 2. Nc3 {[%clk 0:03:02]}
2... d5 {[%clk 0:02:32.7]} 3. Bg5 {[%clk 0:03:02.8]} 3... e6 {[%clk 0:02:15.7]}
4. e4 {[%clk 0:03:03.4]} 4... dxe4 {[%clk 0:02:15.7]} 5. Nxe4 {[%clk 0:03:03.6]}
5... Be7 {[%clk 0:02:16]} 6. Bxf6 {[%clk 0:03:04.2]} 6... Bxf6 {[%clk
0:02:17.1]} 7. Nf3 {[%clk 0:03:05.7]} 7... b6 {[%clk 0:02:15.9]} 8. Qd2 {[%clk
0:02:53.3]} 8... O-O {[%clk 0:02:14.5]} 9. O-O-O {[%clk 0:02:52.5]} 9... Bb7
{[%clk 0:02:15.6]} 10. Bd3 {[%clk 0:02:52.5]} 10... Nd7 {[%clk 0:02:16.4]} 11.
h4 {[%clk 0:02:51.6]} 11... Re8 {[%clk 0:02:09.5]} 12. g4 {[%clk 0:02:32.7]}
12... Nf8 {[%clk 0:02:06.5]} 13. g5 {[%clk 0:02:28.6]} 13... Be7 {[%clk
0:02:07.6]} 14. h5 {[%clk 0:02:27.2]} 14... Qd5 {[%clk 0:01:44.5]} 15. Kb1
{[%clk 0:02:14.1]} 15... Rad8 {[%clk 0:01:33.2]} 16. Qf4 {[%clk 0:02:01.5]}
16... Bd6 {[%clk 0:00:53.1]} 17. Ne5 {[%clk 0:01:56.2]} 17... Bxe5 {[%clk
0:00:38.7]} 18. dxe5 {[%clk 0:01:54.9]} 18... Qa5 {[%clk 0:00:25.9]} 19. g6
{[%clk 0:01:40]} 19... fxg6 {[%clk 0:00:23]} 20. Ng5 {[%clk 0:01:38.4]} 20...
Re7 {[%clk 0:00:16]} 21. hxg6 {[%clk 0:01:34.1]} 21... h6 {[%clk 0:00:17.4]} 22.
Nf7 {[%clk 0:01:08.5]} 22... Rdd7 {[%clk 0:00:12]} 23. Nxh6+ {[%clk 0:01:03]}
23... gxh6 {[%clk 0:00:12.7]} 24. Qxh6 {[%clk 0:01:03.2]} 24... Qxe5 {[%clk
0:00:14.2]} 25. Rh5 {[%clk 0:00:48.8]} 25... Qg7 {[%clk 0:00:14.7]} 26. Qg5
{[%clk 0:00:49.8]} 26... Rd5 {[%clk 0:00:13.6]} 27. Qh4 {[%clk 0:00:44.5]} 27...
Rxh5 {[%clk 0:00:14.3]} 28. Qxh5 {[%clk 0:00:45.6]} 28... Rd7 {[%clk 0:00:14.8]}
29. f4 {[%clk 0:00:38.1]} 29... Nxg6 {[%clk 0:00:13.2]} 30. Rg1 {[%clk
0:00:36.9]} 30... Be4 {[%clk 0:00:10.1]} 31. Bxe4 {[%clk 0:00:34.9]} 31... Nxf4
{[%clk 0:00:07.1]} 32. Rxg7+ {[%clk 0:00:34.2]} 32... Kxg7 {[%clk 0:00:02.9]}
33. Qh7+ {[%clk 0:00:34.3]} 33... Kf6 {[%clk 0:00:04.8]} 34. Qxd7 {[%clk
0:00:34.1]} 34... Ke5 {[%clk 0:00:06.7]} 35. Bd3 {[%clk 0:00:33]} 35... Nd5
{[%clk 0:00:07.1]} 36. c3 {[%clk 0:00:31.8]} 36... c5 {[%clk 0:00:08.4]} 37. Kc2
{[%clk 0:00:32.3]} 37... Ne3+ {[%clk 0:00:09.4]} 38. Kd2 {[%clk 0:00:33.4]}
38... Nd5 {[%clk 0:00:11.3]} 39. Bc4 {[%clk 0:00:33.5]} 39... Nf4 {[%clk
0:00:11.6]} 40. Ke3 {[%clk 0:00:32.9]} 40... Nd5+ {[%clk 0:00:12.7]} 41. Bxd5
{[%clk 0:00:33.7]} 41... exd5 {[%clk 0:00:14.6]} 42. Qxa7 {[%clk 0:00:34.6]}
42... Kf5 {[%clk 0:00:16.4]} 43. Qxb6 {[%clk 0:00:35.7]} 43... Ke5 {[%clk
0:00:18.3]} 44. Qxc5 {[%clk 0:00:36.9]} 44... Ke6 {[%clk 0:00:19.9]} 45. Kd4
{[%clk 0:00:36.8]} 45... Kd7 {[%clk 0:00:21.1]} 46. Ke5 {[%clk 0:00:37.4]} 46...
Ke8 {[%clk 0:00:23]} 47. Qc7 {[%clk 0:00:38]} 47... Kf8 {[%clk 0:00:24.1]} 48.
Kf6 {[%clk 0:00:39.1]} 48... Ke8 {[%clk 0:00:26]} 49. Qe7# {[%clk 0:00:40.3]}
1-0

[Event "*** Titled Tuesday Blitz"]
[Site "Chess.com"]
[Date "2018.04.03"]
[Round "6"]
[White "TheLancer"]
[Black "TST2014"]
[Result "0-1"]
[WhiteElo "2427"]
[BlackElo "2337"]
[TimeControl "180+2"]
[EndTime "14:19:05 PDT"]
[Termination "TST2014 won by resignation"]

1. e4 {[%clk 0:03:01.9]} 1... e5 {[%clk 0:03:00.1]} 2. Nf3 {[%clk 0:03:02.7]}
2... Nc6 {[%clk 0:03:00.7]} 3. Bb5 {[%clk 0:03:03.7]} 3... a6 {[%clk 0:03:01.3]}
4. Ba4 {[%clk 0:03:04.7]} 4... Nf6 {[%clk 0:03:01.8]} 5. O-O {[%clk 0:03:05.6]}
5... Be7 {[%clk 0:03:03.2]} 6. Re1 {[%clk 0:03:06.5]} 6... b5 {[%clk 0:03:03.9]}
7. Bb3 {[%clk 0:03:08]} 7... O-O {[%clk 0:03:05.3]} 8. h3 {[%clk 0:03:02.9]}
8... d6 {[%clk 0:03:01.8]} 9. c3 {[%clk 0:03:03.3]} 9... Na5 {[%clk 0:03:01.5]}
10. Bc2 {[%clk 0:03:03.2]} 10... c5 {[%clk 0:03:03]} 11. d3 {[%clk 0:03:00.1]}
11... Nc6 {[%clk 0:03:01.3]} 12. Nbd2 {[%clk 0:02:51]} 12... Re8 {[%clk
0:03:00.4]} 13. Nf1 {[%clk 0:02:46.6]} 13... Bf8 {[%clk 0:03:01.4]} 14. Ng3
{[%clk 0:02:37.8]} 14... d5 {[%clk 0:02:56.4]} 15. Qe2 {[%clk 0:02:23.6]} 15...
d4 {[%clk 0:02:55.7]} 16. a4 {[%clk 0:02:12.9]} 16... Rb8 {[%clk 0:02:51.5]} 17.
axb5 {[%clk 0:02:01.3]} 17... axb5 {[%clk 0:02:51.7]} 18. Bg5 {[%clk 0:01:17.3]}
18... h6 {[%clk 0:02:48.7]} 19. Bc1 {[%clk 0:01:09.7]} 19... Be6 {[%clk
0:02:29.9]} 20. Ra6 {[%clk 0:00:57.8]} 20... Rb6 {[%clk 0:02:29.7]} 21. Rxb6
{[%clk 0:00:53.2]} 21... Qxb6 {[%clk 0:02:31]} 22. cxd4 {[%clk 0:00:34.7]} 22...
cxd4 {[%clk 0:02:28.8]} 23. Nh4 {[%clk 0:00:34.7]} 23... g6 {[%clk 0:02:17.5]}
24. Qf3 {[%clk 0:00:29.5]} 24... Bg7 {[%clk 0:02:10.3]} 25. Bxh6 {[%clk
0:00:20.9]} 25... Bxh6 {[%clk 0:01:59.3]} 26. Qxf6 {[%clk 0:00:21.8]} 26... Bg7
{[%clk 0:01:49.7]} 27. Qg5 {[%clk 0:00:21.5]} 27... Qc5 {[%clk 0:01:48.4]} 28.
Rc1 {[%clk 0:00:20.8]} 28... Qb4 {[%clk 0:01:44.6]} 29. Bd1 {[%clk 0:00:18.4]}
29... Ne7 {[%clk 0:01:29.8]} 30. Bg4 {[%clk 0:00:19.1]} 30... Bxg4 {[%clk
0:01:23.4]} 31. Qxg4 {[%clk 0:00:15.8]} 31... Qxb2 {[%clk 0:01:23.9]} 32. Rc7
{[%clk 0:00:16.3]} 32... b4 {[%clk 0:01:16.8]} 33. Qd7 {[%clk 0:00:15.6]} 33...
Kf8 {[%clk 0:01:16.7]} 34. Qd6 {[%clk 0:00:13.9]} 34... b3 {[%clk 0:01:12.7]}
35. Ngf5 {[%clk 0:00:14.9]} 35... gxf5 {[%clk 0:01:10.3]} 36. Nxf5 {[%clk
0:00:15.8]} 36... Qc3 {[%clk 0:00:40.7]} 37. Rxc3 {[%clk 0:00:15.3]} 37... dxc3
{[%clk 0:00:41]} 38. Qb4 {[%clk 0:00:15.9]} 38... c2 {[%clk 0:00:36.4]} 39. Qa3
{[%clk 0:00:17.1]} 39... Bh6 {[%clk 0:00:30.5]} 40. Nxh6 {[%clk 0:00:16.8]}
40... Rc8 {[%clk 0:00:32]} 41. Qc1 {[%clk 0:00:11.6]} 41... b2 {[%clk
0:00:33.1]} 42. Qxb2 {[%clk 0:00:12.9]} 42... c1=Q+ {[%clk 0:00:33.6]} 0-1

[Event "*** Titled Tuesday Blitz"]
[Site "Chess.com"]
[Date "2018.04.03"]
[Round "6"]
[White "Batica1984"]
[Black "Sebastian"]
[Result "1/2-1/2"]
[WhiteElo "2643"]
[BlackElo "2792"]
[TimeControl "180+2"]
[EndTime "14:19:15 PDT"]
[Termination "Game drawn by agreement"]

1. e4 {[%clk 0:03:01.9]} 1... c5 {[%clk 0:03:00.6]} 2. Nf3 {[%clk 0:03:01.8]}
2... d6 {[%clk 0:03:02.2]} 3. d4 {[%clk 0:03:01.5]} 3... cxd4 {[%clk 0:03:03.8]}
4. Nxd4 {[%clk 0:03:02.6]} 4... Nf6 {[%clk 0:03:05.4]} 5. Nc3 {[%clk 0:03:03.7]}
5... a6 {[%clk 0:03:07.1]} 6. a4 {[%clk 0:02:59]} 6... g6 {[%clk 0:02:58.2]} 7.
Be2 {[%clk 0:02:53.4]} 7... Bg7 {[%clk 0:02:59]} 8. O-O {[%clk 0:02:54.3]} 8...
O-O {[%clk 0:03:00.6]} 9. Be3 {[%clk 0:02:55.2]} 9... Nc6 {[%clk 0:03:01]} 10.
Qd2 {[%clk 0:02:49.8]} 10... Bd7 {[%clk 0:03:02.2]} 11. Rad1 {[%clk 0:02:41.3]}
11... Rc8 {[%clk 0:02:50.3]} 12. Nxc6 {[%clk 0:02:17.9]} 12... Bxc6 {[%clk
0:02:50.2]} 13. f3 {[%clk 0:02:14.9]} 13... Nd7 {[%clk 0:02:46]} 14. Bd4 {[%clk
0:02:12]} 14... Qa5 {[%clk 0:02:26.9]} 15. Bxg7 {[%clk 0:02:04.9]} 15... Kxg7
{[%clk 0:02:27.5]} 16. Qd4+ {[%clk 0:01:53.9]} 16... Kg8 {[%clk 0:02:20.9]} 17.
b4 {[%clk 0:01:53.7]} 17... Qb6 {[%clk 0:01:56.2]} 18. a5 {[%clk 0:01:21.5]}
18... Qxd4+ {[%clk 0:01:46.2]} 19. Rxd4 {[%clk 0:01:23.4]} 19... Rc7 {[%clk
0:01:47.7]} 20. Bc4 {[%clk 0:01:14]} 20... Rfc8 {[%clk 0:01:42.1]} 21. Bb3
{[%clk 0:01:13.8]} 21... b6 {[%clk 0:01:31.6]} 22. axb6 {[%clk 0:01:11.5]} 22...
Nxb6 {[%clk 0:01:32.3]} 23. f4 {[%clk 0:01:07]} 23... Bb7 {[%clk 0:01:30]} 24.
Nd5 {[%clk 0:00:55]} 24... Nxd5 {[%clk 0:01:04.8]} 25. exd5 {[%clk 0:00:56.1]}
25... Rc3 {[%clk 0:01:06.4]} 26. f5 {[%clk 0:00:55.3]} 26... Kg7 {[%clk
0:01:02.1]} 27. Re4 {[%clk 0:00:53]} 27... R8c7 {[%clk 0:01:00.4]} 28. Rfe1
{[%clk 0:00:35.5]} 28... Kf8 {[%clk 0:00:58.1]} 29. Rh4 {[%clk 0:00:35.8]} 29...
Bc8 {[%clk 0:00:52.9]} 30. fxg6 {[%clk 0:00:33.9]} 30... hxg6 {[%clk 0:00:52.9]}
31. Rh8+ {[%clk 0:00:33.7]} 31... Kg7 {[%clk 0:00:54]} 32. Re8 {[%clk
0:00:34.7]} 32... Kf6 {[%clk 0:00:51]} 33. Rf1+ {[%clk 0:00:35]} 33... Kg7
{[%clk 0:00:50.9]} 34. Re1 {[%clk 0:00:35.4]} 34... Bf5 {[%clk 0:00:21.5]} 35.
R8xe7 {[%clk 0:00:28.7]} 35... Rxe7 {[%clk 0:00:22]} 36. Rxe7 {[%clk 0:00:29.7]}
36... Bxc2 {[%clk 0:00:23.7]} 37. Bxc2 {[%clk 0:00:30.7]} 37... Rxc2 {[%clk
0:00:25.6]} 38. Rd7 {[%clk 0:00:28.4]} 38... Rc4 {[%clk 0:00:25.8]} 39. Rxd6
{[%clk 0:00:29.4]} 39... Rxb4 {[%clk 0:00:26.6]} 40. Rxa6 {[%clk 0:00:30.4]}
40... Rd4 {[%clk 0:00:28.2]} 41. d6 {[%clk 0:00:30.5]} 41... Kf6 {[%clk
0:00:25.2]} 42. Kf2 {[%clk 0:00:31.6]} 42... Ke6 {[%clk 0:00:25.5]} 43. Ke3
{[%clk 0:00:26.6]} 43... Rxd6 {[%clk 0:00:24]} 44. Rxd6+ {[%clk 0:00:27]} 44...
Kxd6 {[%clk 0:00:25.6]} 45. Kf4 {[%clk 0:00:28.2]} 45... f6 {[%clk 0:00:26.2]}
46. h4 {[%clk 0:00:27.1]} 46... Ke6 {[%clk 0:00:26.8]} 47. Ke4 {[%clk
0:00:27.6]} 47... Kd6 {[%clk 0:00:27.2]} 48. Kf4 {[%clk 0:00:25.1]} 1/2-1/2

[Event "*** Titled Tuesday Blitz"]
[Site "Chess.com"]
[Date "2018.04.03"]
[Round "6"]
[White "GMSrinath"]
[Black "Muracle"]
[Result "0-1"]
[WhiteElo "2711"]
[BlackElo "2476"]
[TimeControl "180+2"]
[EndTime "14:19:27 PDT"]
[Termination "Muracle won by resignation"]

1. Nf3 {[%clk 0:03:00.6]} 1... Nf6 {[%clk 0:03:00.7]} 2. g3 {[%clk 0:03:02]}
2... d5 {[%clk 0:03:01.6]} 3. Bg2 {[%clk 0:03:03.7]} 3... Bf5 {[%clk 0:03:02.9]}
4. d3 {[%clk 0:03:04]} 4... c6 {[%clk 0:03:03.8]} 5. Nbd2 {[%clk 0:03:05.5]}
5... Nbd7 {[%clk 0:03:04.9]} 6. O-O {[%clk 0:03:06.6]} 6... e6 {[%clk
0:03:05.9]} 7. Re1 {[%clk 0:03:08]} 7... h6 {[%clk 0:03:06.4]} 8. e4 {[%clk
0:03:09.3]} 8... Bg6 {[%clk 0:03:07]} 9. e5 {[%clk 0:03:03.5]} 9... Ng8 {[%clk
0:03:00.7]} 10. Nh4 {[%clk 0:03:03]} 10... Bh7 {[%clk 0:03:00.5]} 11. f4 {[%clk
0:03:04.9]} 11... Bc5+ {[%clk 0:03:00.3]} 12. Kh1 {[%clk 0:03:05.5]} 12... Ne7
{[%clk 0:02:58.6]} 13. Nb3 {[%clk 0:02:41.8]} 13... Bb6 {[%clk 0:02:51.4]} 14.
a4 {[%clk 0:02:43.2]} 14... a6 {[%clk 0:02:49.3]} 15. a5 {[%clk 0:02:42.5]}
15... Ba7 {[%clk 0:02:50.1]} 16. d4 {[%clk 0:02:24.7]} 16... Qc7 {[%clk
0:02:48.9]} 17. Be3 {[%clk 0:02:25.5]} 17... O-O-O {[%clk 0:02:48.7]} 18. c3
{[%clk 0:01:58.6]} 18... Rdg8 {[%clk 0:02:48.3]} 19. Qh5 {[%clk 0:01:57]} 19...
g6 {[%clk 0:02:34.7]} 20. Qg4 {[%clk 0:01:41.9]} 20... g5 {[%clk 0:02:31.1]} 21.
fxg5 {[%clk 0:01:42.7]} 21... hxg5 {[%clk 0:02:33]} 22. Bxg5 {[%clk 0:01:44.3]}
22... Nf5 {[%clk 0:02:22.7]} 23. Nxf5 {[%clk 0:01:31.5]} 23... Bxf5 {[%clk
0:02:24.6]} 24. Qf4 {[%clk 0:01:33.1]} 24... Rh5 {[%clk 0:02:17.7]} 25. Be7
{[%clk 0:01:30.8]} 25... Nxe5 {[%clk 0:02:08.2]} 26. Rxe5 {[%clk 0:00:56.6]}
26... Qxe7 {[%clk 0:02:07.1]} 27. Qf3 {[%clk 0:00:58.5]} 27... Rgh8 {[%clk
0:02:03.6]} 28. Kg1 {[%clk 0:00:51.4]} 28... Qg5 {[%clk 0:01:43.1]} 29. h4
{[%clk 0:00:35.2]} 29... Qg7 {[%clk 0:01:33.9]} 30. Re3 {[%clk 0:00:32]} 30...
R5h6 {[%clk 0:01:18.3]} 31. Rf1 {[%clk 0:00:32.8]} 31... Rg6 {[%clk 0:01:17.1]}
32. Nc1 {[%clk 0:00:20.6]} 32... Bb8 {[%clk 0:01:14]} 33. Ne2 {[%clk 0:00:22.1]}
33... Rh7 {[%clk 0:01:10.3]} 34. Nf4 {[%clk 0:00:22.3]} 34... Be4 {[%clk
0:00:41.9]} 35. Qf2 {[%clk 0:00:18.9]} 35... Bxg2 {[%clk 0:00:34.4]} 36. Kxg2
{[%clk 0:00:11.2]} 36... Rg4 {[%clk 0:00:33.6]} 37. Ne2 {[%clk 0:00:12.8]} 37...
Rgxh4 {[%clk 0:00:32]} 38. Qf3 {[%clk 0:00:05.5]} 38... Rh2+ {[%clk 0:00:30.9]}
39. Kg1 {[%clk 0:00:07]} 39... Qg6 {[%clk 0:00:21]} 40. Nf4 {[%clk 0:00:06.6]}
40... Bxf4 {[%clk 0:00:18.3]} 41. Qxf4 {[%clk 0:00:08.5]} 41... Rh1+ {[%clk
0:00:19.4]} 42. Kf2 {[%clk 0:00:09.8]} 42... R7h2+ {[%clk 0:00:19.9]} 0-1